Cogmind - Beta 15 @@@ ROGUE MODE // 2025.07.01 @ 11:45:05 Player: McSaucyNugget Result: Self-destructed Performance ------------- Evolutions (4) 2000 Regions Visited (7) 1400 Robots Destroyed (79) 395 Value Destroyed (2415) 2415 Prototype IDs (9) 180 Alien Tech Used (0) 0 Bonus (909) 909 TOTAL SCORE: 7299 Bonus ------- Follower Combat Kills 109 Registered with UFD 300 Met Optimus in HQ 500 Cogmind --------- Core Integrity 775/850 Matter 189/300 Energy 160/160 System Corruption 2% Temperature Cool (0) Movement Core (1700) Ox33 Location -6/Factory Parts ------- > --- POWER (1) -------- Light Fission Core > --- PROPULSION (3) --- Armored Wheel > --- UTILITY (7) ------ Advanced Heat Sink Advanced Heat Sink Huge Storage Unit Improved Terrain Scan Processor Hardened Light Armor Plating Improved Hacking Suite > --- WEAPON (4) ------- Heavy Laser Gauss Rifle > --- INVENTORY (25) --- Ion Engine Light Angular Momentum Engine Light Treads Wheel Wheel Armored Wheel Combat Airjet Combat Airjet Scrap Suit Advanced Heat Sink Large Storage Unit Improved Terrain Scanner Transmission Jammer Authchip [Propulsion] Authchip [Propulsion] Authchip [Propulsion] A0-MCA's Component Scanner Plasma Cannon Phase Cannon Hypervelocity Gauss Rifle Plasma Cutter CPS Tube (2) Mace Peak State ------------ > --- POWER ------------ Light Fission Core > --- PROPULSION ------- Advanced Treads Armored Wheel Armored Wheel > --- UTILITY ---------- Huge Storage Unit Improved Terrain Scanner Improved Terrain Scan Processor Transmission Jammer Hardened Light Armor Plating Medium Reactive Plating Improved Hacking Suite > --- WEAPON ----------- Heavy Laser Gauss Rifle Coil Gun Hypervelocity Gauss Rifle > --- INVENTORY -------- Ion Engine Light Angular Momentum Engine Light Treads Light Treads Wheel Armored Wheel Combat Airjet Combat Airjet Scrap Suit Large Storage Unit Hardened Light Armor Plating Authchip [Propulsion] Authchip [Propulsion] Authchip [Propulsion] A0-MCA's Component Scanner Heavy Laser Phase Cannon Rocket Launcher Plasma Cutter CPS Tube Mace [Rating: 59] Favorites ----------- Power Light Nuclear Core Engine Ion Engine Power Core Light Nuclear Core Propulsion Wheel Treads Light Treads Wheel Wheel Utility Huge Storage Unit Device Heat Sink Storage Huge Storage Unit Processor Improved Terrain Scan Processor Hackware Hacking Suite Protection Medium Reactive Plating Weapon Hypervelocity Gauss Rifle Energy Gun Improved EM Shotgun Energy Cannon Particle Cannon Ballistic Gun Hypervelocity Gauss Rifle Ballistic Cannon Light Cannon Launcher Grenade Launcher Special Weapon Mining Laser Slashing Weapon Mining Claw Build | -11 -10 -10 -9 -9 -9 -9 -6 ------- Run | Yrd Mat Min Mat Sto Rec Scr Fac Slots Evolved 8 | . . . 2 . . . 6 Power . | . . . . . . . . Propulsion 1 | . . . 1 . . . . Utility 5 | . . . 1 . . . 4 Weapon 2 | . . . . . . . 2 Parts Attached 66 | 7 4 5 16 10 3 8 13 Power 9 | 2 1 2 1 2 . 1 . Engine 5 | 2 . 1 1 1 . . . Core 4 | . 1 1 . 1 . 1 . Reactor . | . . . . . . . . Propulsion 14 | 2 . 2 3 1 2 3 1 Treads 6 | 2 . 1 1 . . 1 1 Leg . | . . . . . . . . Wheel 8 | . . 1 2 1 2 2 . Hover . | . . . . . . . . Flight . | . . . . . . . . Utility 22 | 1 1 1 6 4 . 2 7 Device 8 | . . . 2 1 . . 5 Storage 3 | 1 1 . 1 . . . . Processor 2 | . . . 1 . . . 1 Hackware 2 | . . . . 1 . 1 . Protection 7 | . . 1 2 2 . 1 1 Artifact . | . . . . . . . . Weapon 21 | 2 2 . 6 3 1 2 5 Energy Gun 5 | . . . 1 1 . . 3 Energy Cannon 1 | . . . 1 . . . . Ballistic Gun 8 | 2 . . 2 1 . 2 1 Ballistic Cannon 2 | . 1 . . . 1 . . Launcher 3 | . . . 2 . . . 1 Special Weapon 1 | . 1 . . . . . . Impact Weapon . | . . . . . . . . Slashing Weapon 1 | . . . . 1 . . . Piercing Weapon . | . . . . . . . . Special Melee Weapon . | . . . . . . . . Unidentified Prototypes 1 | . . . . 1 . . . Parts Lost 22 | . . 5 6 2 . . 9 Power 4 | . . 2 2 . . . . Propulsion 8 | . . 2 2 1 . . 3 Utility 4 | . . 1 1 . . . 2 Weapon 6 | . . . 1 1 . . 4 Highest Loss Streak 5 | . . 3 3 2 . . 5 To Critical Strikes 1 | . . . 1 . . . . Average Backups 21 | 1 9 14 20 24 24 24 21 Power 1 | . 1 1 . 2 2 1 1 Propulsion 6 | . 6 6 5 6 6 6 6 Utility 7 | . . 2 6 9 9 10 7 Weapon 5 | . 1 4 7 7 6 5 3 Tool/Special . | . . . . . . . . Unused Backups 46 | . 3 3 5 8 3 8 16 Power 3 | . . . . 1 . . 2 Propulsion 18 | . 3 3 3 2 1 2 4 Utility 13 | . . . . 4 2 2 5 Weapon 10 | . . . 2 1 . 4 3 Tool/Special 2 | . . . . . . . 2 Average Slot Usage (%) 96 | . 97 97 89 99 92 100 94 Engine 3 | . 4 3 6 9 . . . Core 7 | . 9 10 2 1 11 11 6 Treads 12 | . 28 26 9 11 11 11 5 Wheel 16 | . . . 17 21 22 22 12 Device 6 | . . . 14 6 11 3 12 Storage 12 | . 25 15 11 11 11 11 6 Processor 1 | . . . 1 4 . . 5 Hackware 6 | . . . . 6 11 11 6 Protection 5 | . . 11 3 4 . 7 12 Energy Gun 1 | . . . . 6 2 . 7 Energy Cannon 2 | . . . 8 8 . . . Ballistic Gun 14 | . 22 14 10 6 5 21 15 Ballistic Cannon 2 | . 4 12 1 . 8 . . Peak Build Rating 59 | 6 10 12 16 21 21 39 59 Average Rating 24 | 5 8 10 13 18 18 32 55 On Entrance 15 | . 6 10 8 16 21 21 39 Naked Turns . | . . . . . . . . Heaviest Build 133 | 12 34 36 96 99 92 118 133 Greatest Support 40 | 40 40 40 20 20 22 24 24 Greatest Overweight (x) 9 | 1 . 2 9 9 4 5 5 Average Overweight (x) 3 | . . . 4 4 4 4 4 Largest Inventory Capacity 25 | 8 15 15 25 25 25 25 25 Average Capacity 22 | 6 13 15 22 25 25 25 25 Most Carried 25 | 4 15 15 25 25 25 25 25 Average Carried 21 | 2 9 14 20 24 24 24 22 Final Capacity 25 | 8 15 15 25 25 25 25 25 Final Carried 25 | 4 15 15 25 25 24 25 24 Class Distribution -------------------- 50% | Commander-Mutant 34% | Mutant 6% | Scavenger-Mutant 3% | Tank Dominant Class ---------------- Mutant | -10/Materials Mutant | -10/Mines Mutant | -9/Materials Mutant | -9/Storage Commander-Mutant | -9/Recycling Commander-Mutant | -9/Scraptown Tank | -6/Factory Resources | -11 -10 -10 -9 -9 -9 -9 -6 ----------- Run | Yrd Mat Min Mat Sto Rec Scr Fac Matter Collected 1906 | 220 198 232 392 216 59 86 503 Remotely . | . . . . . . . . Salvage Created 3029 | . 238 155 840 622 . . 1174 Parts 184 | . 19 12 50 40 . . 63 Haulers Intercepted 2 | . . . . 1 . . 1 Recyclers Shooed 6 | . . . 1 . 2 . 3 Parts Field Recycled . | . . . . . . . . Retrieved Matter . | . . . . . . . . Parts Self-Destructed . | . . . . . . . . Prevented . | . . . . . . . . Kills | -11 -10 -10 -9 -9 -9 -9 -6 ------- Run | Yrd Mat Min Mat Sto Rec Scr Fac Combat Hostiles Destroyed 55 | . 8 5 18 9 . . 15 Guns 32 | . 6 1 6 5 . . 14 Cannons 17 | . 2 4 7 4 . . . AOE 6 | . . . 5 . . . 1 Classes Destroyed 15 | . 3 1 6 2 . . 3 Worker 4 | . . . 2 2 . . . Builder 8 | . . . 1 1 . . 6 Tunneler 2 | . 1 1 . . . . . Hauler 2 | . . . . 1 . . 1 Recycler 3 | . . . 1 1 . . 1 Operator 4 | . . . 1 2 . . 1 Watcher 1 | . . . . 1 . . . Swarmer 9 | . 3 . 2 2 . . 2 Grunt 31 | . 5 3 9 4 . . 10 Brawler 1 | . . . 1 . . . . Duelist 1 | . . . . . . . 1 Sentry 9 | . . . 6 3 . . . Demolisher 2 | . . 2 . . . . . Hunter 1 | . . . . . . . 1 Programmer 1 | . . . . . . . 1 Best Kill Streak 10 | . 4 3 5 4 . . 10 Combat Bots Only 9 | . 3 2 5 2 . . 9 Max Kills in Single Turn 3 | . 1 1 3 2 . . 3 Gunslinging . | . . . . . . . . Exploded 3 | . . . 3 . . . 1 Melee . | . . . . . . . . Uniques/NPCs Destroyed . | . . . . . . . . Combat | -11 -10 -10 -9 -9 -9 -9 -6 -------- Run | Yrd Mat Min Mat Sto Rec Scr Fac Hostile Shots Fired 295 | . 49 35 72 33 4 . 102 Missed 73 | . 10 11 23 6 1 . 22 Hits 222 | . 39 24 49 27 3 . 80 Projectile 222 | . 39 24 49 27 3 . 80 AOE 7 | . . 7 . . . . . Critical Strikes 12 | . . 1 5 2 . . 4 Damage Taken 3568 | . 424 513 659 362 75 . 1535 Core 436 | . 62 61 180 42 16 . 75 Absorbed by Shields . | . . . . . . . . Ignored by Resistances 16 | . . . . . . . 16 Core Remaining (%) 63 | 100 . 50 . . . 40 . Volleys Fired 229 | . 42 31 55 47 6 . 48 Largest 4 | . 2 2 2 2 2 . 4 Hottest 199 | . 100 50 91 113 53 . 199 Shots Fired 463 | . 76 52 100 89 9 . 137 Gun 311 | . 50 21 54 52 3 . 131 Cannon 139 | . 25 31 40 37 6 . . Launcher 12 | . . . 6 . . . 6 Special 1 | . 1 . . . . . . Kinetic 318 | . 75 52 63 33 9 . 86 Thermal 114 | . 1 . 31 37 . . 45 Explosive 12 | . . . 6 . . . 6 Electromagnetic 19 | . . . . 19 . . . Robot Hit Streak 15 | . 13 7 7 15 4 . 15 Robot Miss Streak 4 | . 3 3 4 3 1 . 4 Penetration Max 2 | . . . . . . . 2 Secondary Targets 7 | . . . . 1 . . 6 Max Gunslinging Chain 1 | . . . . 1 . . 1 Shots Hit Robots 269 | . 38 34 57 54 6 . 80 Core Hits 146 | . 17 13 34 24 1 . 57 Critical Kills 4 | . . . . . . . 4 Critical Parts Destroyed 7 | . . . . 1 . . 6 Critical Strikes 14 | . 1 . 2 1 . . 10 Destroy 11 | . . . . 1 . . 10 Blast 3 | . 1 . 2 . . . . Melee Attacks 4 | . . . . 4 . . . Impact . | . . . . . . . . Slashing 4 | . . . . 4 . . . Piercing . | . . . . . . . . Sneak Attacks . | . . . . . . . . Combat Hostiles . | . . . . . . . . Follow-up Attacks . | . . . . . . . . Damage Inflicted 5508 | . 409 478 1266 1019 140 . 2196 Guns 2708 | . 263 124 336 547 33 . 1405 Cannons 1565 | . 146 348 527 472 72 . . Explosions 1194 | . . . 403 . . . 791 Melee . | . . . . . . . . Ramming 41 | . . 6 . . 35 . . Kinetic 2555 | . 409 472 495 233 105 . 841 Thermal 1404 | . . . 368 472 . . 564 Explosive 1194 | . . . 403 . . . 791 Electromagnetic 314 | . . . . 314 . . . Impact . | . . . . . . . . Slashing . | . . . . . . . . Piercing . | . . . . . . . . Highest Corruption 2 | . . . . . . . 2 Average Corruption 1 | . . . . . . . 1 Corruption Purged . | . . . . . . . . Corruption Blocked . | . . . . . . . . Effects 2 | . . . . . . . 2 Matter Fused 1 | . . . . . . . 1 Data Loss (major) 1 | . . . . . . . 1 Overload Shots . | . . . . . . . . Overflow Damage 47 | . . 8 27 6 . . 6 Projectiles 35 | . . 8 27 . . . . Explosions 12 | . . . . 6 . . 6 Melee . | . . . . . . . . Knockbacks 10 | . 3 5 . . 2 . . Impact 1 | . . . . . 1 . . Kinetic 9 | . 3 5 . . 1 . . Secondary . | . . . . . . . . Self-Inflicted Damage 76 | . . . . 40 17 . 19 Shots 3 | . . . . 1 . . 2 Rammed 2 | . . . . . 2 . . Targets Rammed 3 | . . 1 . . 2 . . Kicked . | . . . . . . . . Crushed 1 | . . 1 . . . . . Highest Temperature 489 | . 80 213 96 216 . . 489 Average Temperature 82 | . 31 74 20 54 . . 138 Received Heat Transfer 1369 | . 195 162 312 132 9 . 559 Effects 10 | . . . . 3 . . 7 Shutdowns 1 | . . . . . . . 1 Interference 5 | . . . . 3 . . 2 Matter Decay 1 | . . . . . . . 1 Short Circuit 2 | . . . . . . . 2 Damage (minor) 1 | . . . . . . . 1 Siege Activations . | . . . . . . . . Martial Activations . | . . . . . . . . Shielding Activations . | . . . . . . . . Robots Disrupted . | . . . . . . . . Combat Hostiles . | . . . . . . . . Robots Corrupted . | . . . . . . . . Combat Hostiles . | . . . . . . . . Parts Fried 1 | . . . . 1 . . . Impact Corruptions . | . . . . . . . . Robots Melted . | . . . . . . . . Combat Hostiles . | . . . . . . . . Parts Melted 2 | . . . . 1 . . 1 Heat Transferred 2590 | . . . 666 851 . . 1073 Parts Sabotaged . | . . . . . . . . Parts Stolen . | . . . . . . . . Parts Stripped . | . . . . . . . . Power Chain Reactions 1 | . . . . 1 . . . Alert | -11 -10 -10 -9 -9 -9 -9 -6 ------- Run | Yrd Mat Min Mat Sto Rec Scr Fac Maximum Alert Level 1 | . . . 1 1 . . . Low Security (%) 94 | 100 100 100 89 83 100 . 100 Level 1 5 | . . . 10 16 . . . Level 2 . | . . . . . . . . Level 3 . | . . . . . . . . Level 4 . | . . . . . . . . Level 5 . | . . . . . . . . High Security . | . . . . . . . . Max Security . | . . . . . . . . Peak Influence 301 | . 75 40 301 240 84 . 143 Initial 117 | . . 8 9 117 84 . . Average 51 | . 32 7 78 91 13 . 50 Influence Increases 2086 | . 211 162 565 532 31 . 585 Destroy 0b10 Robot/C 1200 | . 160 120 360 220 20 . 320 Destroy 0b10 Robot/NC 135 | . 5 5 25 40 . . 60 Destroy Leader 286 | . 30 30 100 64 . . 62 Allied During Kill 184 | . . 7 . 89 11 . 77 Successful Hack 10 | . . . 5 5 . . . Disable Machine 150 | . 15 . 30 75 . . 30 Destroy Structure 76 | . 1 . 30 9 . . 36 Lose Combat Pursuer 45 | . . . 15 30 . . . Influence Decreases 1963 | . 189 160 310 594 248 . 462 Entered New Map 324 | . . 14 15 162 133 . . Time Decay 1233 | . 189 81 255 382 115 . 211 Lost Part 146 | . . 25 40 20 . . 61 Lost Ally 230 | . . 40 . . . . 190 Purge Threat 30 | . . . . 30 . . . Squads Dispatched 11 | . 1 . 3 2 . . 5 Investigation 2 | . 1 . 1 . . . . Extermination 1 | . . . . . . . 1 Reinforcement 6 | . . . 2 1 . . 3 Assault . | . . . . . . . . Garrison 2 | . . . . 1 . . 1 Intercept . | . . . . . . . . Searches Triggered . | . . . . . . . . Construction Impeded . | . . . . . . . . Haulers Reinforced 2 | . . . . . . . 2 Active Scanning Responses . | . . . . . . . . Cargo Convoy Interrupts . | . . . . . . . . Stealth | -11 -10 -10 -9 -9 -9 -9 -6 --------- Run | Yrd Mat Min Mat Sto Rec Scr Fac Distress Signals 5 | . . . 1 2 . . 2 Communications Jammed 62 | . . . . . . . 62 Distress Signals 62 | . . . . . . . 62 Times Spotted 93 | . 13 10 24 18 1 . 27 Peak Tracking Total 7 | . 3 7 5 4 . . 6 Tactical Retreats 3 | . . . 1 2 . . . Traps | -11 -10 -10 -9 -9 -9 -9 -6 ------- Run | Yrd Mat Min Mat Sto Rec Scr Fac Traps Triggered 2 | . 1 . . . . . 1 Indirectly . | . . . . . . . . Trap Hack Attempts . | . . . . . . . . Triggered . | . . . . . . . . Disarmed . | . . . . . . . . Reprogrammed . | . . . . . . . . Reused . | . . . . . . . . Traps Extracted . | . . . . . . . . Installed . | . . . . . . . . Triggered . | . . . . . . . . Machines | -11 -10 -10 -9 -9 -9 -9 -6 ---------- Run | Yrd Mat Min Mat Sto Rec Scr Fac Machines Disabled 11 | . 1 1 2 5 . . 2 Max in Single Turn 1 | . 1 1 1 1 . . 1 Garrison Access 2 | . . . . 1 . . 1 Machines Repaired . | . . . . . . . . Machines Dismantled . | . . . . . . . . Machines Sabotaged . | . . . . . . . . Overloaded Fab Kills . | . . . . . . . . Hacking | -11 -10 -10 -9 -9 -9 -9 -6 --------- Run | Yrd Mat Min Mat Sto Rec Scr Fac Machines Accessed 14 | . 2 . 2 7 1 1 1 Terminals 11 | . 2 . 2 6 1 . . Fabricators . | . . . . . . . . Repair Stations . | . . . . . . . . Recycling Units . | . . . . . . . . Scanalyzers . | . . . . . . . . Garrison Access 2 | . . . . 1 . . 1 Total Hacks 21 | . 2 . 5 11 1 1 1 Successful 14 | . 1 . 2 8 1 1 1 Failed 7 | . 1 . 3 3 . . . Catastrophic 1 | . . . . 1 . . . Database Lockouts . | . . . . . . . . Manual 4 | . 1 . . 3 . . . Terminals 16 | . 2 . 5 8 1 . . Fabricators . | . . . . . . . . Repair Stations . | . . . . . . . . Recycling Units . | . . . . . . . . Scanalyzers . | . . . . . . . . Garrison Access 4 | . . . . 3 . . 1 Terminal Hacks 11 | . 1 . 2 6 1 1 . Record 1 | . . . . 1 . . . Prototype ID Bank 1 | . . . 1 . . . . Open Door 1 | . . . . 1 . . . Emergency Access Points 1 | . . . 1 . . . . Unreport Threat 1 | . . . . 1 . . . Hauler Manifests 1 | . . . . 1 . . . Zone Layout 4 | . 1 . . 2 1 . . Proto ID Catalog 1 | . . . . . . 1 . Fabricator Hacks . | . . . . . . . . Repair Station Hacks . | . . . . . . . . Recycling Unit Hacks . | . . . . . . . . Scanalyzer . | . . . . . . . . Garrison Access Hacks 2 | . . . . 1 . . 1 Seal Access 2 | . . . . 1 . . 1 Unauthorized Hacks 1 | . . . . 1 . . . Terminals 1 | . . . . 1 . . . Botnet 1 | . . . . 1 . . . Fabricators . | . . . . . . . . Repair Stations . | . . . . . . . . Recycling Units . | . . . . . . . . Scanalyzers . | . . . . . . . . Garrison Access . | . . . . . . . . Data Cores Recovered 2 | . . . . 1 . . 1 Used . | . . . . . . . . Hacking Detections 8 | . 1 . 2 4 1 . . Full Trace Events 1 | . . . 1 . . . . Feedback Events . | . . . . . . . . Feedback Blocked . | . . . . . . . . Robot Schematics Acquired . | . . . . . . . . Robots Built . | . . . . . . . . Authchips . | . . . . . . . . Time . | . . . . . . . . Total Robot Build Rating . | . . . . . . . . Part Schematics Acquired . | . . . . . . . . Parts Built . | . . . . . . . . Authchips . | . . . . . . . . Time . | . . . . . . . . Total Part Build Rating . | . . . . . . . . Parts Repaired . | . . . . . . . . Time . | . . . . . . . . Parts Recycled . | . . . . . . . . Recycled Matter . | . . . . . . . . Retrieved Matter . | . . . . . . . . Retrieved Components . | . . . . . . . . Parts Scanalyzed . | . . . . . . . . Part Schematics Acquired . | . . . . . . . . Parts Damaged . | . . . . . . . . Bothacking | -11 -10 -10 -9 -9 -9 -9 -6 ------------ Run | Yrd Mat Min Mat Sto Rec Scr Fac Used RIF Installer . | . . . . . . . . Robots Hacked . | . . . . . . . . Non-combat . | . . . . . . . . Combat . | . . . . . . . . Robot Hacks Applied . | . . . . . . . . Relay Couplers Released . | . . . . . . . . Fabnet Peak Effective % . | . . . . . . . . Robots Rewired 4 | . . . . . 4 . . Allies Hacked . | . . . . . . . . Hacks Repelled . | . . . . . . . . Allies | -11 -10 -10 -9 -9 -9 -9 -6 -------- Run | Yrd Mat Min Mat Sto Rec Scr Fac Total Allies 16 | . . 2 . 10 4 . . Largest Group 13 | . . 2 . 10 13 12 12 Highest-Rated Group 129 | . . 43 . 88 129 119 119 Highest-Rated Ally 31 | . . 31 . 16 21 21 21 Total Orders 1 | . . . . . 1 . . COLLECT 1 | . . . . . 1 . . Ally Attacks 78 | . . 6 . 23 6 . 43 Total Damage 827 | . . 105 . 150 55 . 517 Kills 9 | . . 1 . 3 1 . 4 Allies Corrupted . | . . . . . . . . Allies Melted . | . . . . . . . . Intel | -11 -10 -10 -9 -9 -9 -9 -6 ------- Run | Yrd Mat Min Mat Sto Rec Scr Fac Active Infowar (turns) 1014 | . . . 587 . . . 427 Terrain 354 | . . . . . . . 354 Structural 587 | . . . 587 . . . . Jamming 425 | . . . . . . . 425 Robot Analysis Total . | . . . . . . . . Derelict Logs Recovered 2 | . . 2 . . . . . Drone Launches . | . . . . . . . . Drone Recoveries . | . . . . . . . . Exploration | -11 -10 -10 -9 -9 -9 -9 -6 ------------- Run | Yrd Mat Min Mat Sto Rec Scr Fac Turns Passed 6150 | 95 545 447 806 956 651 2091 559 Spaces Moved 3347 | 55 249 224 404 532 371 1335 177 Core 6 | 6 . . . . . . . Treads 501 | 49 249 203 . . . . . Legs . | . . . . . . . . Wheels 2840 | . . 21 404 532 371 1335 177 Hover . | . . . . . . . . Flight . | . . . . . . . . Fastest Speed 50 | 50 160 110 110 140 140 145 150 Average Speed 149 | 150 160 156 143 140 141 152 160 Slowest Speed 240 | 160 160 240 215 215 145 160 165 Overloaded Moves . | . . . . . . . . Propulsion Burnouts . | . . . . . . . . Robots Hopped . | . . . . . . . . Potential Cave-ins . | . . . . . . . . Cave-ins Triggered . | . . . . . . . . Exploration Rate (%) 46 | 5 40 49 36 57 91 85 7 Regions Visited 7 Branch Regions 4 Pre-discovered Areas . | . . . . . . . . Known Exits Taken 1 | . . . 1 . . . . Unknown Exits Taken 6 | 1 1 1 . 1 1 1 . Scrap Searched 5 | . . 1 . . . 4 . Spaces Dug . | . . . . . . . . Terrain Destroyed 66 | . . . 27 6 . . 33 Melee . | . . . . . . . . Projectile 1 | . . . . . . . 1 AOE 64 | . . . 27 6 . . 31 Terrain Rammed . | . . . . . . . . Walls Destroyed . | . . . . . . . . Machines Disabled . | . . . . . . . . Actions | -11 -10 -10 -9 -9 -9 -9 -6 --------- Run | Yrd Mat Min Mat Sto Rec Scr Fac Total 4082 | 64 328 273 537 651 490 1391 348 Wait 255 | . 15 . 22 23 68 25 102 Move 3340 | 54 248 223 403 531 370 1334 177 Hop . | . . . . . . . . Pick Up 79 | 3 15 6 22 15 4 8 6 Fast Attach 23 | 6 1 2 7 1 1 3 2 Attach 23 | . . 3 7 3 1 . 9 Detach 6 | . . . 3 2 . . 1 Swap 32 | 1 3 2 7 8 2 6 3 Drop 60 | . 4 5 11 17 8 15 . Fire 229 | . 42 31 55 47 6 . 48 Melee 4 | . . . . 4 . . . Ram 2 | . . . . . 2 . . Kick . | . . . . . . . . Crush 1 | . . 1 . . . . . Escape Stasis . | . . . . . . . . Rewire 28 | . . . . . 28 . . Trap . | . . . . . . . . Miscellaneous . | . . . . . . . . Route ------- -11/Scrapyard -10/Materials (discovered 2 exits: Mat / [*Min]) -10/Mines (discovered 2 exits: *Mat / [*Sub]) -9/Materials (discovered 2 exits: *Mat / *Sto) -9/Storage -9/Recycling (discovered 2 exits: [*Fac] / *Scr) -9/Scraptown (discovered 2 exits: *Fac x2) -6/Factory History --------- Turn | Location | Event 10 | -11/Scrapyard | Discovered new exit (range 15) 96 | -11/Scrapyard | Entered Materials 309 | -10/Materials | Build established: Mutant 326 | -10/Materials | Discovered new exit (range 14) 585 | -10/Materials | Discovered new exit (range 16) 641 | -10/Materials | Entered Mines 651 | -10/Mines | Learned Materials security intel 681 | -10/Mines | Joined a pair of Derelicts in attacking an 0b10 outpost 769 | -10/Mines | Discovered new exit (range 5) 802 | -10/Mines | Discovered new exit (range 6) 809 | -10/Mines | Learned Materials terminal intel 820 | -10/Mines | Found DCF Scrap (12 items) 1038 | -10/Mines | Assembled infested the area 1086 | -10/Mines | Lost 3 parts (1p1n1u) 1088 | -10/Mines | Entered Materials 1088 | -9/Materials | Evolved 2 slots: Propulsion x1, Utility x1 1090 | -9/Materials | Loaded intel: 12 terminal locations 1250 | -9/Materials | Lost 3 parts (1p1u1w) 1486 | -9/Materials | Lost 3 parts (1p2n) 1661 | -9/Materials | Discovered new exit (range 7) 1789 | -9/Materials | Discovered new exit (range 9) 1800 | -9/Materials | Identified exit to Materials 1893 | -9/Materials | Identified exit to Storage 1894 | -9/Materials | Entered Storage 2101 | -9/Storage | Garrison activated, responded to threat 2508 | -9/Storage | Assisted by bots powering up and referring to "LRC-V3" 2514 | -9/Storage | Core integrity fell below 50% 2815 | -9/Storage | Build established: Commander-Mutant 2827 | -9/Storage | Used back door to open Recycling access 2827 | -9/Storage | Discovered new exit (range 4) 2850 | -9/Storage | Entered Recycling 2850 | -9/Recycling | Accompanied by 9 allies 2851 | -9/Recycling | Joined Warlord attack on 0b10 via Recycling 3232 | -9/Recycling | Discovered new exit (range 14) 3310 | -9/Recycling | Scanned before Scraplab entrance 3426 | -9/Recycling | Entered Scraplab 3438 | -9/Recycling | Discovered new exit (range 2) 3501 | -9/Recycling | Entered Scraptown 3501 | -9/Scraptown | Accompanied by 12 allies 3711 | -9/Scraptown | Discovered new exit (range 11) 3775 | -9/Scraptown | Visited SPCMW 3804 | -9/Scraptown | Visited Fellowship of the Rings 3850 | -9/Scraptown | Visited Comm Corps 3966 | -9/Scraptown | Visited Red Mages 4026 | -9/Scraptown | Visited Spacefarers 4060 | -9/Scraptown | Visited Symbiants 4108 | -9/Scraptown | Visited Cave Peace 4527 | -9/Scraptown | Visited UFD Registry 4527 | -9/Scraptown | Registered with UFD as "Technoflow" 4575 | -9/Scraptown | Visited Supply Room 4604 | -9/Scraptown | Visited A0-MCA Data Center 4614 | -9/Scraptown | Given a B+ rating by A0-MCA 4626 | -9/Scraptown | Found A0-MCA's Component Scanner 4659 | -9/Scraptown | Visited Science Guys 4897 | -9/Scraptown | Visited Chapter 10 4940 | -9/Scraptown | Visited Scrap Suit Storage 4949 | -9/Scraptown | Found Scrap Suit 5006 | -9/Scraptown | Visited Junk Repository 5184 | -9/Scraptown | Visited DA-N13 Charitable Foundation 5198 | -9/Scraptown | Found DCF Scrap (28 items) 5293 | -9/Scraptown | Visited Cartography Club 5389 | -9/Scraptown | Visited Junk Repository 5482 | -9/Scraptown | Met Optimus 5482 | -9/Scraptown | Accepted into 0bPrime 5558 | -9/Scraptown | Discovered new exit (range 5) 5592 | -9/Scraptown | Entered Factory 5592 | -6/Factory | Accompanied by 12 allies 5592 | -6/Factory | Evolved 6 slots: Utility x4, Weapon x2 5715 | -6/Factory | Garrison activated, responded to threat 5805 | -6/Factory | Lost 10 allies 5809 | -6/Factory | Destroyed 9 combat bots 6026 | -6/Factory | Lost 4 parts (1n1u2w) 6151 | -6/Factory | Self-destructed Last Messages --------------- 06142_ C-30 ARC bursts open, deploying its payload. 06142_ L-41 Fighter unfolds itself. 06142_ G-50 Soldier unfolds itself. 06143_ U-05 Engineer lays Concrete. 06143_ Penetrated by Slug. 06144_ U-05 Engineer builds a Wall. 06145_ U-05 Engineer lays Concrete. 06145_ Lgt. Treads destroyed. 06145_ U-05 Engineer builds a Wall. 06145_ A-15 Conveyor destroyed. 06146_ Penetrated by Slug. 06147_ U-05 Engineer lays Concrete. 06147_ U-05 Engineer destroyed. 06149_ Destroyed Hpw. Tractor Beam. 06149_ R-10 Processor destroyed. 06150_ Penetrated by Slug. 06150_ Hvy. Laser destroyed. 06150_ Slug penetrates Wall. 06150_ Rocket Launcher destroyed. Map ----- +----------------------------------------------------+ | ?????????##??#??#?#?#### G" # #####?#?""? | | ?????????????##?#??##### """ # ####?##?"Y? | | ????????????????###?#### #% ##?#??#?"" | | ???????????????#?#?#?#############! #??####???? | | ?????????????#?########?####?##### ##?####?### | | ??????????????########?###?####### ########??? | | ?????????????#?##??####?####?##### | | ?????????????##?#?#####?########## ########??? | | ???????????#?##???##??#?########## ##??###?#?? | | ??????????##?#?##??##########??### #??#???#??? | | ?????????????#?#?##????###??###### #?####?##?? | | ?????????#?#?##?################## #??#??#???? | | ????????##??###?# # #????????#? | | ????????#???#??## """ """ # % #??##?????? | | ???????###?#??### """ """ # % ^ ##?#??????? | | ???????#?#??#?### """ """=+% % #???#?#???? | | ???????#??##?#### # #?#???????? | | ???????#?#?###?## # ###+####???####??? | | ?????????#?##?### # # !??? ??????? | | ??????#??##?#?### ! # #? ? ???????? | | ???????##??################ # """ ]?????#??? | | ???????#??###?#?#?#?#####?# # "?" ! ]]?? ????? | | ????????#?######?####??#### # "?" ???????? | | ?????????##?#?#?########### # """T???????? | | ????????####?#### # ##??#?####???????? | | ????????#?###?### @# # ????????????? | | ??????????#####?# = # ""?????????????? | | ??????????#?##??# [ %= # ???????????????? | | ?????????##??##?# # ""?????????????? | | ??????????#?#?#?# """ % + ???????????????? | | ???????????#?#### """ l # ???????????????? | | ?????????????##?# """ * # ???????????????? | | ??????????????##### []* #?"??????????????? | | ???????????????#### %= g ]%]! #????????????????? | | ????????????????? *!= * []h ?????????????? | | ?????????????????## g %[ = ??????????? | | ??????????????????# g % [%= ???????? | | ?????????????????? % = ! ########????????? | | ?????????????????? # #????????????????? | | ???????????????????# # ???????????????????? | | ???????????????????# ? ?????????????????????? | | ???????????????????# ?????????????????????????? | | ???????????????????# ?????????????????????????? | | ???????????????????# ?????????????????????????? | | ???????????????????# ??????????????????????????? | | ???????????????????? ???????????????????????????? | | ?????????????????????????????????????????????????? | | ?????????????????????????????????????????????????? | | ?????????????????????????????????????????????????? | | ?????????????????????????????????????????????????? | +----------------------------------------------------+ Best States ------------- Heat Dissipation 75 Energy Generation 18 Energy Capacity 265 Matter Stores 300 Matter Capacity 300 Sight Range 16 Terrain Scan Range 16 Terrain Scan Density 110 Jamming Range 12 Armor Coverage 375 Resistance: KI 30 Evasion (%) 40 Recoil Reduction 2 Offensive Hacking 12 Authchip Count 3 Item Schematics ----------------- None Robot Schematics ------------------ None Fabricated ------------ Nothing Repaired ---------- Nothing Alien Tech Used ----------------- None Achievements -------------- None Challenges ------------ None Game ------ Seed AblativeProjectionPit Manual? 0 Play Time 00:42:29 Cumulative 35.0 hours Start 2025.07.01 @ 10:58:24 End 2025.07.01 @ 11:45:05 Sessions 3 Manual Loads 0 Difficulty Rogue Special Mode None Game No. 31 Rogue 31 Adventurer 0 Explorer 0 Win Type - Total 3 Types 2/0/1/0/0/0/0/0/0/0 Lore% 28 Gallery% 35 Achievement% 45 Wizard Run 0 Options --------- Layout 2 ASCII 0 Keyboard 1 Movement Vi Keybinds 0 Fullscreen 1 Font 18/SmallcapsGlow Map View 50x49 Zoom Use 0% Tactical HUD 1 Map Filters NONE Filters NONE Steam X RUN: d23bb065-a4a6-4faf-86e4-eb2b04cdadc8